Workbook

Sheet 예산총괄표
A1: 2021년도 예산총괄표
F2: (단위 : 천원)
A3: 사 업 예 산 | C3: 자 본 예 산 | E3: 자 금 운 영
A4: 수 입 계(A) | B4: =SUM(B5:B9) -> 16969295 | C4: 수 입 계(A') | D4: =SUM(D5:D9) -> 2403000 | E4: 수 입 계(A'') | F4: =SUM(F5:F9) -> 19372295
A5: ='[1]목별조서(수입)'!B7 -> 영업수익 | B5: ='[1]목별조서(수입)'!E7 -> 14868000 | E5: =A5 -> 영업수익 | F5: =SUM(B5+D5) -> 14868000
A6: ='[1]목별조서(수입)'!B14 -> 영업외수익 | B6: =SUM('[1]목별조서(수입)'!E14) -> 2101295 | E6: =A6 -> 영업외수익 | F6: =SUM(B6+D6) -> 2101295
C7: =[1]자본적수입!B8 -> 기타비유동자산처분 | D7: =[1]자본적수입!E8 -> 0 | E7: =C7 -> 기타비유동자산처분 | F7: 0
C8: =[1]자본적수입!B16 -> 유동부채수입 | D8: =[1]자본적수입!E16 -> 2403000 | E8: 유동부채수입 | F8: 2403000
C9: =[1]자본적수입!B24 -> 유보자금 | D9: =[1]자본적수입!E24 -> 0 | E9: 유보자금 | F9: 0
A10: 지 출 계(B) | B10: =SUM(B11:B17) -> 22751264 | C10: 지 출 계(B') | D10: =SUM(D11:D17) -> 120519 | E10: 지 출 계(B'') | F10: =SUM(F11:F17) -> 19372295
A11: ='[1]목별조서(지출)'!B7&" (감가상각 제외)" -> 영업비용 (감가상각 제외) | B11: ='[1]목별조서(지출)'!E7-'[1]목별조서(지출)'!E51 -> 18945088 | E11: 영업비용 | F11: =SUM(B11+D11) -> 18945088
A12: ='[1]목별조서(지출)'!D51 -> 감가상각비 | B12: ='[1]목별조서(지출)'!E51 -> 3499488
A13: ='[1]목별조서(지출)'!B54 -> 영업외비용 | B13: ='[1]목별조서(지출)'!E54 -> 72090 | E13: =A13 -> 영업외비용 | F13: =SUM(B13+D13) -> 72090
C14: ='[1]목별조서(지출)'!B61 -> 투자자산취득 | D14: ='[1]목별조서(지출)'!E61 -> 0 | E14: =C14 -> 투자자산취득 | F14: =SUM(B14+D14) -> 0
C15: ='[1]목별조서(지출)'!B64 -> 유형자산취득 | D15: ='[1]목별조서(지출)'!E64 -> 120519 | E15: =C15 -> 유형자산취득 | F15: 120519
C16: ='[1]목별조서(지출)'!B69 -> 무형자산및기타비유동자산취득 | D16: ='[1]목별조서(지출)'!E69 -> 0 | E16: =C16 -> 무형자산및기타비유동자산취득 | F16: 0
A17: 예비비 | B17: ='[1]목별조서(지출)'!E59 -> 234598 | C17: ='[1]목별조서(지출)'!B71 -> 예비비 | D17: ='[1]목별조서(지출)'!E71 -> 0 | E17: =C17 -> 예비비 | F17: =SUM(B17+D17) -> 234598
A18: 차액(A-B) | B18: =B4-B10 -> -5781969 | C18: 차액(A' - B') | D18: =D4-D10 -> 2282481 | E18: 차액(A''-B'') | F18: =F4-F10 -> 0
